Workbook

Sheet Income Average
A2: INCOME AVERAGING TEST WORKSHEET
B4: In each bedroom size column, enter number of units at each AMI: | H4: % OF AMI | I4: AVERAGE
I5: AMGI | K5: Revenue
B6: Studio | C6: 1BR | D6: 2BR | E6: 3BR | F6: 4BR | G6: TOTAL | K6: Studio | L6: 1BR | M6: 2BR | N6: 3BR | O6: 4BR | P6: Total | Q6: All at 60%
B7: 0 | C7: 0 | D7: 0 | E7: 0 | G7: =SUM(B7:F7) -> 0 | H7: 0.2 | I7: =G7*H7 -> 0 | K7: =+C37*B7 -> 0 | L7: =+C38*C7 -> 0 | M7: =+C39*D7 -> 0 | N7: =+C40*E7 -> 0 | O7: =+C41*F7 -> 0 | P7: =SUM(K7:O7) -> 0
B8: 0 | C8: 0 | D8: 0 | E8: 0 | F8: 0 | G8: =SUM(B8:F8) -> 0 | H8: 0.3 | I8: 0 | K8: =+D37*B8 -> 0 | L8: =+D38*C8 -> 0 | M8: =+D39*D8 -> 0 | N8: =+D40*E8 -> 0 | O8: =+D41*F8 -> 0 | P8: =SUM(K8:O8) -> 0
B9: 0 | C9: 0 | G9: =SUM(B9:F9) -> 0 | H9: 0.4 | I9: =G9*H9 -> 0 | K9: =+E37*B9 -> 0 | L9: =+E38*C9 -> 0 | M9: =+E39*D9 -> 0 | N9: =+E40*E9 -> 0 | O9: =+E41*F9 -> 0 | P9: 0
B10: 0 | C10: 0 | G10: =SUM(B10:F10) -> 0 | H10: 0.5 | I10: 0 | K10: =+F37*B10 -> 0 | L10: =+F38*C10 -> 0 | M10: =+F39*D10 -> 0 | N10: =+F40*E10 -> 0 | O10: =+F41*F10 -> 0 | P10: 0
B11: 0 | C11: 0 | G11: =SUM(B11:F11) -> 0 | H11: 0.6 | I11: 0 | K11: =+G37*B11 -> 0 | L11: =+G38*C11 -> 0 | M11: =+G39*D11 -> 0 | N11: =+G40*E11 -> 0 | O11: =+G41*F11 -> 0 | P11: 0 | Q11: =+B14*G37+C14*G38+D14*G39+E14*G40+F14*G41 -> 0
B12: 0 | C12: 0 | G12: 0 | H12: 0.7 | I12: 0 | K12: =+B12*H37 -> 0 | L12: =+H38*C12 -> 0 | M12: =+H39*D12 -> 0 | N12: =+E12*H40 -> 0 | O12: =+F12*H41 -> 0 | P12: 0
B13: 0 | C13: 0 | G13: 0 | H13: 0.8 | I13: 0 | K13: =+I37*B13 -> 0 | L13: =+I38*C13 -> 0 | M13: =+I39*D13 -> 0 | N13: =+I40*E13 -> 0 | O13: =+I41*F13 -> 0 | P13: 0
B14: =SUM(B7:B13) -> 0 | C14: =SUM(C7:C13) -> 0 | D14: =SUM(D7:D13) -> 0 | E14: 0 | F14: 0 | G14: 0 | I14: =SUM(I7:I13)/G14 ->  | P14: =SUM(P7:P13) -> 0 | Q14: =SUM(Q7:Q13) -> 0 | R14: =+P14-Q14 -> 0
Q15: Annual | R15: =+R14*12 -> 0
B16: Bond Test
B17: 40/60 Test | C17: =+IF((SUM($G$7:$G$11)/$G$14)>=0.4,"Pass","Fail") -> 
B18: 20/50 Test | C18: =+IF(SUM($G$7:$G$10)/$G$14>=0.2,"Pass","Fail") -> 
A21: Determination of Income and Rent
E22: Select County from drop-down list below:
D23: County: | E23: Adams County, WA
D24: 4 Person @ VLI (50%) | E24: =VLOOKUP(E23,'County 50% (2020)'!A1:B59,2,FALSE) -> 33650
B26: Income | C26: 0.2 | D26: 0.3 | E26: 0.4 | F26: 0.5 | G26: 0.6 | H26: 0.7 | I26: 0.8 | J26: 1.4
B27: 1 Person | C27: =F27*$C$26*2 -> 9440 | D27: =F27*$D$26*2 -> 14160 | E27: =F27*$E$26*2 -> 18880 | F27: =+CEILING($E$24*K27,50) -> 23600 | G27: =F27*$G$26*2 -> 28320 | H27: =F27*$H$26*2 -> 33040 | I27: =F27*$I$26*2 -> 37760 | J27: =F27*$J$26*2 -> 66080 | K27: 0.7
B28: 2 Person | C28: 10780 | D28: 16170 | E28: 21560 | F28: 26950 | G28: 32340 | H28: 37730 | I28: 43120 | J28: 75460 | K28: 0.8
B29: 3 Person | C29: 12120 | D29: 18180 | E29: 24240 | F29: 30300 | G29: 36360 | H29: 42420 | I29: 48480 | J29: 84840 | K29: 0.9
B30: 4 Person | C30: 13460 | D30: 20190 | E30: 26920 | F30: 33650 | G30: 40380 | H30: 47110 | I30: 53840 | J30: 94220 | K30: 1
B31: 5 Person | C31: 14540 | D31: 21810 | E31: 29080 | F31: 36350 | G31: 43620 | H31: 50890 | I31: 58160 | J31: 101780 | K31: 1.08
B32: 6 Person | C32: 15620 | D32: 23430 | E32: 31240 | F32: 39050 | G32: 46860 | H32: 54670 | I32: 62480 | J32: 109340 | K32: 1.16
B33: 7 Person | C33: 16700 | D33: 25050 | E33: 33400 | F33: 41750 | G33: 50100 | H33: 58450 | I33: 66800 | J33: 116900 | K33: 1.24
B34: 8 Person | C34: 17780 | D34: 26670 | E34: 35560 | F34: 44450 | G34: 53340 | H34: 62230 | I34: 71120 | J34: 124460 | K34: 1.32
B36: Rent | C36: =C26 -> 0.2 | D36: 0.3 | E36: 0.4 | F36: 0.5 | G36: 0.6 | H36: 0.7 | I36: 0.8
B37: Efficiency | C37: =+ROUNDDOWN(C27*0.3/12,0) -> 236 | D37: 354 | E37: 472 | F37: 590 | G37: 708 | H37: 826 | I37: 944
B38: 1 Bedroom | C38: =+ROUNDDOWN(((C27+C28)/2)*0.3/12,0) -> 252 | D38: 379 | E38: 505 | F38: 631 | G38: 758 | H38: 884 | I38: 1011
B39: 2 Bedroom | C39: =+ROUNDDOWN(C29*0.3/12,0) -> 303 | D39: 454 | E39: 606 | F39: 757 | G39: 909 | H39: 1060 | I39: 1212
B40: 3 Bedroom | C40: =+ROUNDDOWN(((C30+C31)/2)*0.3/12,0) -> 350 | D40: 525 | E40: 700 | F40: 875 | G40: 1050 | H40: 1225 | I40: 1400
B41: 4 Bedroom | C41: =+ROUNDDOWN(C32*0.3/12,0) -> 390 | D41: 585 | E41: 781 | F41: 976 | G41: 1171 | H41: 1366 | I41: 1562
B42: 5 Bedroom | C42: =+ROUNDDOWN(((C33+C34)/2)*0.3/12,0) -> 431 | D42: 646 | E42: 862 | F42: 1077 | G42: 1293 | H42: 1508 | I42: 1724
B44: Change in Rent (compared to 60%)
C45: =C36 -> 0.2 | D45: =D36 -> 0.3 | E45: 0.4 | F45: 0.5 | G45: 0.6 | H45: 0.7 | I45: 0.8
B46: =B37 -> Efficiency | C46: =C37-$G37 -> -472 | D46: -354 | E46: -236 | F46: -118 | G46: N/A | H46: =H37-G37 -> 118 | I46: =I37-G37 -> 236
B47: 1 Bedroom | C47: -506 | D47: -379 | E47: -253 | F47: -127 | G47: N/A | H47: 126 | I47: 253
B48: 2 Bedroom | C48: -606 | D48: -455 | E48: -303 | F48: -152 | G48: N/A | H48: 151 | I48: 303
B49: 3 Bedroom | C49: -700 | D49: -525 | E49: -350 | F49: -175 | G49: N/A | H49: 175 | I49: 350
B50: 4 Bedroom | C50: -781 | D50: -586 | E50: -390 | F50: -195 | G50: N/A | H50: 195 | I50: 391
B51: 5 Bedroom | C51: -862 | D51: -647 | E51: -431 | F51: -216 | G51: N/A | H51: 215 | I51: 431

Sheet County 50% (2020)
A1: County_Name | B1: l50_4
A2: Adams County, WA | B2: 33650
A3: Asotin County, WA | B3: 34050
A4: Benton County, WA | B4: 38750
A5: Chelan County, WA | B5: 34700
A6: Clallam County, WA | B6: 33650
A7: Clark County, WA | B7: 46050
A8: Columbia County, WA | B8: 33650
A9: Cowlitz County, WA | B9: 34600
A10: Douglas County, WA | B10: 34700
A11: Ferry County, WA | B11: 33650
A12: Franklin County, WA | B12: 38750
A13: Garfield County, WA | B13: 33650
A14: Grant County, WA | B14: 34700
A15: Grays Harbor County, WA | B15: 33650
A16: Island County, WA | B16: 38000
A17: Jefferson County, WA | B17: 34300
A18: King County, WA | B18: 59700
A19: Kitsap County, WA | B19: 45850
A20: Kittitas County, WA | B20: 37450
A21: Klickitat County, WA | B21: 33650
A22: Lewis County, WA | B22: 33650
A23: Lincoln County, WA | B23: 33650
A24: Mason County, WA | B24: 33650
A25: Okanogan County, WA | B25: 33650
A26: Pacific County, WA | B26: 33650
A27: Pend Oreille County, WA | B27: 33650
A28: Pierce County, WA | B28: 43250
A29: San Juan County, WA | B29: 39200
A30: Skagit County, WA | B30: 39200
A31: Skamania County, WA | B31: 46050
A32: Snohomish County, WA | B32: 59700
A33: Spokane County, WA | B33: 38700
A34: Stevens County, WA | B34: 33650
A35: Thurston County, WA | B35: 43350
A36: Wahkiakum County, WA | B36: 33650
A37: Walla Walla County, WA | B37: 34950
A38: Whatcom County, WA | B38: 42650
A39: Whitman County, WA | B39: 36150
A40: Yakima County, WA | B40: 33650
A41: ,
